[Event "FRA-ch Teams Top 16-A 2022"]
[Site "Chartres"]
[Date "2022.06.09"]
[Round "1.18"]
[White "Song, Julien"]
[Black "Bauer, Christian"]
[Result "0-1"]
[ECO "E61"]
[WhiteElo "2388"]
[BlackElo "2596"]
[Annotator "TA"]
[PlyCount "78"]
[EventDate "2022.06.09"]
[EventType "team-tourn"]
[EventCountry "FRA"]
[SourceTitle "playchess.com"]
[Source "ChessBase"]
[SourceQuality "1"]
[TimeControl "40/5400+30:1800+30"]

{[%evp 9,78,27,41,51,41,33,54,49,51,24,27,35,32,47,32,32,41,33,39,31,28,36,37,9,83,42,172,181,187,177,238,215,234,191,210,206,212,222,218,214,211,206,212,214,325,233,227,233,238,239,234,219,349,172,187,200,183,202,182,-76,-84,-994,-967,-5314,-5310,-29987,-658,-667,-665,-577,-567]} 1. d4 {[%emt 0:00:10]} d6 {[%emt 0:00:24]} 2. Nf3 {[%emt 0:01:04]} Nf6 {[%emt 0:00:50]} 3. c4 {[%emt 0:00:52]} g6 {[%emt 0:00:22]} 4. Nc3 {[%emt 0:00:52]} Bf5 {[%emt 0:00:06]} 5. Qb3 {[%emt 0:00:59]} b6 {[%emt 0:00:47]} 6. h3 {[%emt 0:01:08] E61: King's Indian: Early deviations for White, including Smyslov System.} Bg7 {[%emt 0:19:25]} 7. g4 {[%emt 0:01:24]} Bc8 {[%emt 0:02:10]} 8. e4 {[%emt 0:04:53] White is slightly better.} Bb7 {[%emt 0:02:43] [#]} 9. d5 $146 {[%emt 0:07:35]} ({Predecessor:} 9. Qc2 h5 10. g5 Nfd7 11. Be3 a6 12. O-O-O c5 13. Be2 Nc6 14. d5 Na5 15. Nd2 {1-0 (68) Barbot,P (2453)-Le Roux,J (2543) Agen 2017}) 9... O-O {[%emt 0:01:45]} 10. Be3 {[%emt 0:05:39]} c6 {[%emt 0:01:07]} 11. Bg2 {[%emt 0:22:20]} Nbd7 {[%emt 0:10:19]} 12. O-O {[%emt 0:06:01]} Rc8 {[%emt 0:03:52]} 13. Nd4 {[%emt 0:11:01]} cxd5 {[%emt 0:53:10]} 14. cxd5 {[%emt 0:01:20]} Nc5 {[%emt 0:00:00]} 15. Qa3 {[%emt 0:01:58]} e5 {[%emt 0:00:00]} 16. Ndb5 {[%emt 0:18:58] With the idea b4.} (16. Nc6 $5 Bxc6 17. dxc6 $11) 16... h5 {[%emt 0:00:00]} (16... a5 $11) 17. g5 {[%emt 0:04:00]} ({Much weaker is} 17. Nxa7 $6 Ra8 $11) 17... Nh7 {[%emt 0:00:00] [#]} (17... Ne8 $1 $14) 18. b4 $1 $36 {[%emt 0:00:22][%mdl 2048] White is really pushing.} ({Stronger than} 18. Nxa7 Ra8 $11) 18... Na6 {[%emt 0:00:00]} 19. Nxa7 {[%emt 0:01:29]} Nxg5 {[%emt 0:00:00]} (19... Ra8 {might work better.}) 20. Nxc8 {[%emt 0:01:18]} Bxc8 {[%emt 0:00:00]} 21. Bxg5 {[%emt 0:01:47]} Qxg5 {[%emt 0:00:00]} 22. Nb5 {[%emt 0:00:14][%cal Bc3b5,Bb5a7,Ba7b5][%mdl 32]} Qd8 {[%emt 0:00:00]} 23. Rac1 {[%emt 0:00:37] Black must now prevent Rc6.} Bb7 {[%emt 0:00:00] Inhibits Rc6.} 24. Na7 {[%emt 0:01:12]} Bh6 {[%emt 0:00:00]} 25. Rc2 {[%emt 0:00:59]} Bf4 {[%emt 0:00:00]} 26. Rb1 {[%emt 0:02:11]} Qg5 {[%emt 0:00:59]} (26... f5 $142 27. Nc6 Qd7) 27. Nb5 {[%emt 0:00:32]} Qe7 {[%emt 0:00:33]} 28. Qd3 {[%emt 0:00:34]} Ra8 {[%emt 0:01:00]} 29. a3 {[%emt 0:00:14]} Kg7 {[%emt 0:00:52]} 30. Rb3 {[%emt 0:00:12]} g5 {[%emt 0:02:08]} (30... Qd8 $142 31. Qf1 Kh7) 31. Rbc3 {[%emt 0:00:28]} (31. Qd1 $142) 31... Nxb4 {[%emt 0:00:09]} 32. axb4 {[%emt 0:01:12]} Ra1+ {[%emt 0:00:01]} 33. Bf1 {[%emt 0:00:08] Hoping for Rc7.} Ba6 {[%emt 0:00:06]} 34. Kg2 $2 {[%emt 0:01:25]} (34. f3 $18) 34... g4 $17 {[%emt 0:00:08] And now ...Qg5 would win. Dancing on a razor blade.} 35. Be2 $2 {[%emt 0:01:36][%mdl 8192]} (35. Qe2 $17) 35... Qg5 $19 {[%emt 0:01:26]} 36. hxg4 {[%emt 0:01:14]} hxg4 {( -> ...Qh5)} 37. Bxg4 {[%emt 0:01:02]} Qxg4+ {[%emt 0:04:38]} (37... Bxb5 $142 38. Qf3 Bf1+ 39. Kg1 Be2+ 40. Kg2 {[#]} Qh6 $1 41. Qh3 Bf1+ 42. Kf3 Bxh3 43. Rc1 Bxc1 44. Bxh3 Qxh3+ 45. Ke2 Qxc3 46. f4 Bxf4 47. Kf2 Qg3+ 48. Ke2 Qe3#) 38. Qg3 {[%emt 0:00:30]} Bxg3 {[%emt 0:00:30]} 39. Rxg3 {[%emt 0:00:30]} Qxg3+ {[%emt 0:00:00] Weighted Error Value: White=0.88/Black=0.40} 0-1

[Event "FRA-ch Teams Top 16-A 2022"]
[Site "Chartres"]
[Date "2022.06.09"]
[Round "1.19"]
[White "Tiviakov, Sergei"]
[Black "Iglesias, Yosha"]
[Result "1-0"]
[ECO "B06"]
[WhiteElo "2567"]
[BlackElo "2202"]
[Annotator "TA"]
[PlyCount "107"]
[EventDate "2022.06.09"]
[EventType "team-tourn"]
[EventCountry "FRA"]
[SourceTitle "playchess.com"]
[Source "ChessBase"]
[SourceQuality "1"]
[TimeControl "40/5400+30:1800+30"]

{[%evp 9,107,23,25,22,21,30,33,32,37,40,45,31,18,26,34,8,36,36,34,25,56,67,64,32,33,38,54,56,54,25,26,34,27,25,40,37,49,45,44,23,51,44,46,46,75,71,75,75,78,74,73,68,93,82,131,121,227,233,237,231,230,228,236,248,249,247,248,231,248,247,237,241,239,239,239,222,325,312,326,290,274,274,1085,1066,2639,2449,1991,1964,29957,29962,29959,29964,29959,4931,29968,29971,29969,29962,6456,7141]} 1. e4 {[%emt 0:00:04]} c5 {[%emt 0:00:07][%cal Bc7c5,Bc5d4][%mdl 32]} 2. c3 {[%emt 0:00:09]} d5 {[%emt 0:00:14]} 3. exd5 {[%emt 0:00:05]} Qxd5 {[%emt 0:00:06]} 4. d4 {[%emt 0:00:05]} g6 {[%emt 0:00:43]} 5. Nf3 {[%emt 0:00:05]} Bg7 {[%emt 0:00:26]} 6. Nbd2 {[%emt 0:01:27] B06: Modern Defence.} cxd4 {[%emt 0:02:05]} 7. Bc4 {[%emt 0:00:04]} Qc5 {[%emt 0:03:25]} 8. Qb3 {[%emt 0:01:08] White is slightly better.} Nh6 {[%emt 0:00:36]} 9. Ne4 {[%emt 0:00:11]} Qb6 {[%emt 0:00:09]} 10. Qxb6 {[%emt 0:00:24]} axb6 {[%emt 0:00:50]} 11. Nxd4 {[%emt 0:00:06]} Nf5 {[%emt 0:07:03] [#]} 12. Nb5 $146 {[%emt 0:03:27] [#] Nc7+ is the strong threat.} ({Predecessor:} 12. Nf3 Nc6 13. Bf4 O-O 14. O-O e5 15. Bg5 Na5 16. Bd5 h6 17. g4 hxg5 18. gxf5 gxf5 19. Nexg5 {1-0 (72) Beerdsen,T (2508)-Nguyen,P (2401) Cappelle la Grande 2022}) 12... O-O {[%emt 0:03:45]} 13. O-O {[%emt 0:00:23]} Nc6 {[%emt 0:01:47]} 14. Bf4 {[%emt 0:05:40]} Ne5 {[%emt 0:07:38]} 15. Bxe5 {[%emt 0:05:06]} Bxe5 {[%emt 0:00:43]} 16. Rfd1 {[%emt 0:00:29] Inhibits Bd7.} Ng7 {[%emt 0:14:14]} 17. Bb3 {[%emt 0:12:56]} Bf5 {[%emt 0:18:25]} 18. Nd2 {[%emt 0:00:29]} Bd3 {[%emt 0:13:01]} 19. Bc4 {[%emt 0:08:17]} Bc2 {[%emt 0:02:38] This bishop pair is nice.} 20. Re1 {[%emt 0:00:48]} Bf6 {[%emt 0:01:24]} 21. Bb3 {[%emt 0:07:13]} Rad8 {[%emt 0:05:45]} 22. Ne4 {[%emt 0:07:18]} Bxe4 {[%emt 0:00:37]} 23. Rxe4 {[%emt 0:00:02]} e6 {[%emt 0:02:44]} 24. Rae1 {[%emt 0:05:13]} Rd2 {[%emt 0:02:37]} 25. Na3 {[%emt 0:01:12]} b5 {[%emt 0:07:53]} 26. Rb1 {[%emt 0:16:36]} Be7 {[%emt 0:02:48]} 27. Nxb5 {[%emt 0:00:07] White now steadily converts the win.} Bc5 {[%emt 0:00:03]} 28. Nd4 {[%emt 0:00:08]} Nf5 {[%emt 0:00:27][%cal Rf5d4]} 29. Re2 {[%emt 0:00:25]} Rxe2 {[%emt 0:02:08]} 30. Nxe2 {[%emt 0:00:02]} Rd8 {[%emt 0:00:12]} 31. Kf1 {[%emt 0:00:18]} Nh4 {[%emt 0:00:45]} (31... Be7 $142) 32. Bc2 $16 {[%emt 0:03:21]} f5 {[%emt 0:00:28]} (32... Kg7 $16 {is a better defense.}) 33. Rd1 $18 {[%emt 0:01:34]} Rxd1+ {[%emt 0:00:08]} 34. Bxd1 {[%emt 0:00:04][%mdl 4096] Endgame KBN-KBN} g5 {[%emt 0:00:54]} 35. Nd4 {[%emt 0:00:28]} e5 {[%emt 0:00:32]} 36. Bb3+ {[%emt 0:00:54]} Kh8 {[%emt 0:00:09]} 37. Ne6 {[%emt 0:00:06][%csl LRc5,LRg5]} Be7 {[%emt 0:00:08]} 38. Bd5 {[%emt 0:00:35]} b6 {[%emt 0:00:20]} 39. b4 {[%emt 0:00:12]} Ng6 {[%emt 0:00:37]} 40. a4 {[%emt 0:00:09]} Nf4 {[%emt 0:00:42]} 41. Nxf4 {[%emt 0:31:31]} gxf4 {[%emt 0:06:24] KB-KB} 42. Be6 {[%emt 0:00:00]} e4 {[%emt 0:01:19]} (42... h6 $142 43. Bxf5 Kg7) 43. Bxf5 {[%emt 0:00:00]} Bf6 {[%emt 0:00:20]} 44. c4 {[%emt 0:00:00][%cal Bc3c4,Bc4c5,Bc5b6][%mdl 32]} (44. Bxe4 Bxc3 45. b5 Kg7 $16) 44... Bc3 {[%emt 0:08:51]} 45. c5 {[%emt 0:00:00]} ({Resist} 45. Bxe4 $6 Bxb4 46. Ke2 Kg7 $16) 45... Bxb4 $2 {[%emt 0:00:24] [#]} (45... bxc5 46. b5 (46. bxc5 e3 $18) (46. Bxe4 Bxb4 47. Ke2 c4 $16) 46... Ba5 47. Bxe4 c4) 46. cxb6 {[%emt 0:00:00]} h6 {[%emt 0:05:24]} 47. Bxe4 {[%emt 0:00:00]} Kg7 {[%emt 0:00:15]} 48. g4 {[%emt 0:00:00]} fxg3 {[%emt 0:02:31]} 49. fxg3 {[%emt 0:00:00][%cal Bf2g3,Bg3g4][%mdl 32]} Kf6 {[%emt 0:00:11]} 50. Ke2 {[%emt 0:00:00]} Ke5 {[%emt 0:01:42]} 51. Kf3 {[%emt 0:00:00]} (51. b7 $142 Bd6 52. Kd3 Ke6 53. a5 Bb8 54. a6 h5 55. Bg6 Kd5 56. Bxh5) 51... Ba5 {[%emt 0:00:53]} 52. b7 {[%emt 0:00:00]} Bc7 {[%emt 0:00:03]} 53. h4 {[%emt 0:00:00]} Bb8 {[%emt 0:00:29]} 54. g4 {[%emt 0:28:39] Weighted Error Value: White=0.05 (flawless) /Black=0.42} 1-0

[Event "FRA-ch Teams Top 16-A 2022"]
[Site "Chartres"]
[Date "2022.06.09"]
[Round "1.20"]
[White "Sohier, Julien"]
[Black "Maurizzi, Marc`Andria"]
[Result "0-1"]
[ECO "B30"]
[WhiteElo "2218"]
[BlackElo "2490"]
[Annotator "TA"]
[PlyCount "58"]
[EventDate "2022.06.09"]
[EventType "team-tourn"]
[EventCountry "FRA"]
[SourceTitle "playchess.com"]
[Source "ChessBase"]
[SourceQuality "1"]
[TimeControl "40/5400+30:1800+30"]

{[%evp 10,58,13,10,14,-16,-4,-3,-8,-18,17,-2,-1,0,75,0,11,-31,-32,-36,-50,-75,-64,-43,-8,-18,-9,0,56,77,60,76,93,-210,-209,-202,-186,-329,-300,-327,-218,-221,-191,-868,-845,-1248,-1241,-2093,-1001,-1950,-1879]} 1. e4 {[%emt 0:00:03]} c5 {[%emt 0:00:25]} 2. Nc3 {[%emt 0:00:07]} Nc6 {[%emt 0:01:12]} 3. Bb5 {[%emt 0:00:11]} Nd4 {[%emt 0:00:34]} 4. Nf3 {[%emt 0:00:21]} e6 {[%emt 0:00:13]} 5. O-O {[%emt 0:00:35]} a6 {[%emt 0:00:12]} 6. Bd3 {[%emt 0:00:26]} Nc6 {[%emt 0:00:09] B30: Sicilian: 2...Nc6 3 Bb5, lines without ...g6.} 7. Nd5 {[%emt 0:04:21][%cal Oc2c3] 7.e5 is becoming the main line.} g5 {[%emt 0:25:00] Threatens to win with ...g4.} 8. Ne3 {[%emt 0:05:46]} h5 {[%emt 0:07:28] The position is equal.} 9. c3 {[%emt 0:02:29]} Bg7 {[%emt 0:03:13]} (9... g4 $5 {[%cal Rg4f3]} 10. Ne1 d5 $11) 10. Bc2 {[%emt 0:14:27]} g4 {[%emt 0:05:20]} 11. Ne1 {[%emt 0:03:04] [#]} Nh6 $146 {[%emt 0:14:41]} (11... d5 $11) ({Predecessor:} 11... Nge7 12. f4 gxf3 13. Nxf3 Ng6 14. d4 cxd4 15. cxd4 Nh4 16. d5 Nxf3+ 17. Qxf3 Ne5 {0-1 (44) Ibarra Jerez,J (2570)-Garriga Cazorla,P (2472) Chess.com INT 2022}) 12. f4 {[%emt 0:19:57]} (12. Nd3 $16) 12... d5 $11 {[%emt 0:08:52][%cal Bd7d5,Bd5d4][%mdl 32]} 13. e5 {[%emt 0:02:38]} b5 {[%emt 0:00:17]} 14. a4 {[%emt 0:06:19]} Rb8 {[%emt 0:04:06]} 15. Rf2 {[%emt 0:08:46]} d4 $36 {[%emt 0:01:36][%mdl 2048] White is under pressure.} 16. Nf1 {[%emt 0:00:21]} Bb7 {[%emt 0:03:33]} 17. axb5 {[%emt 0:00:40]} (17. Ng3 {feels hotter.} h4 18. Ne4 g3 19. Nd6+) 17... axb5 {[%emt 0:00:01]} 18. Ng3 {[%emt 0:03:17]} Bf8 {[%emt 0:02:42]} ({Black should play} 18... h4 $11 19. Ne4 Qb6) 19. Nxh5 $14 {[%emt 0:02:11]} Be7 {[%emt 0:00:04] Inhibits Nf6+.} 20. Be4 {[%emt 0:01:09]} c4 {[%emt 0:01:43] [#]} 21. cxd4 $2 {[%emt 0:07:00][%mdl 8192] This move loses the game for White.} (21. d3 $1 $16 {keeps the pressure on.}) 21... Nxd4 $19 {[%emt 0:03:03]} 22. Bxb7 {[%emt 0:00:36]} Rxb7 {[%emt 0:00:01]} 23. Nf6+ {[%emt 0:02:01]} (23. b4 $142) 23... Bxf6 {[%emt 0:04:06]} 24. exf6 {[%emt 0:00:04]} Nb3 {[%emt 0:00:23] Pair of Knights!} (24... Qxf6 25. g3 $17) 25. Ra3 {[%emt 0:05:05]} Nf5 {[%emt 0:01:16][%cal Bh6f5,Bf5g3,Bg3e2][%mdl 32] [#] And now ...g3 would win.} ({Weaker is} 25... Qxf6 26. g3 $17) 26. d3 $2 {[%emt 0:01:56]} (26. Qxg4 Nxc1 27. Qf3) 26... g3 {[%emt 0:01:04] Black is clearly winning.} 27. hxg3 {[%emt 0:04:28]} Nxg3 {[%emt 0:00:33][%csl Gg3][%cal Rh8h1]} 28. Rf3 {[%emt 0:00:13]} Nxc1 {[%emt 0:00:13]} (28... Qd4+ $142 29. Be3 Rh1+ 30. Kf2 Ne4+ 31. dxe4 Qxd1) 29. Qxc1 {[%emt 0:02:21]} Ne2+ {[%emt 0:00:02] Weighted Error Value: White=1.20/Black=0.40} 0-1

[Event "FRA-ch Teams Top 16-A 2022"]
[Site "Chartres"]
[Date "2022.06.09"]
[Round "1.21"]
[White "Medvegy, Zoltan"]
[Black "Mendeiros, Jerome"]
[Result "1-0"]
[ECO "D45"]
[WhiteElo "2522"]
[BlackElo "2097"]
[Annotator "TA"]
[PlyCount "63"]
[EventDate "2022.06.09"]
[EventType "team-tourn"]
[EventCountry "FRA"]
[SourceTitle "playchess.com"]
[Source "ChessBase"]
[SourceQuality "1"]
[TimeControl "40/5400+30:1800+30"]

{[%evp 23,63,0,0,0,14,20,17,16,23,25,15,15,3,0,0,0,41,27,31,22,33,27,39,-79,42,39,39,0,57,60,52,64,62,55,83,18,204,212,706,685,687,670]} 1. Nf3 {[%emt 0:00:03]} d5 {[%emt 0:00:22]} 2. e3 {[%emt 0:01:41]} Nf6 {[%emt 0:01:15]} 3. c4 {[%emt 0:00:13]} c6 {[%emt 0:00:23]} 4. Nc3 {[%emt 0:00:22]} e6 {[%emt 0:01:15]} 5. b3 {[%emt 0:01:14]} Bd6 {[%emt 0:02:19]} 6. Bb2 {[%emt 0:00:14]} O-O {[%emt 0:01:35]} 7. Be2 {[%emt 0:00:33]} b6 {[%emt 0:05:33]} 8. Qc2 {[%emt 0:06:15]} Bb7 {[%emt 0:01:58]} 9. O-O {[%emt 0:13:17]} Nbd7 {[%emt 0:03:10]} 10. d4 {[%emt 0:00:09]} Qe7 {[%emt 0:01:16]} 11. Rad1 {[%emt 0:02:05]} Rad8 {[%emt 0:02:54]} 12. Rfe1 {[%emt 0:00:20]} Rfe8 {[%emt 0:01:01]} 13. g3 {[%emt 0:01:14] D45: Semi-Slav: 5 e3.} Bb4 {[%emt 0:08:15] The modern move.} 14. a3 {[%emt 0:03:46]} Bxc3 {[%emt 0:04:06]} ({Don't do} 14... Bxa3 15. Bxa3 Qxa3 16. Ra1 $14) 15. Bxc3 {[%emt 0:05:48] The position is equal.} Ne4 {[%emt 0:07:42]} 16. Bb2 {[%emt 0:01:31]} c5 {[%emt 0:13:28] [#]} 17. Nd2 $146 {[%emt 0:19:35]} ({Predecessor:} 17. dxc5 bxc5 18. cxd5 exd5 19. Bf1 Ndf6 20. h3 Bc8 21. Bg2 h5 22. b4 Bf5 23. Qa4 {1-0 (81) Rustemov,A (2525)-Caruana,F (2792) Chess.com INT 2022}) 17... Nxd2 {[%emt 0:08:17]} 18. Rxd2 {[%emt 0:00:05]} Nf6 {[%emt 0:00:14]} 19. f3 {[%emt 0:03:42]} Nd7 {[%emt 0:05:55]} 20. cxd5 {[%emt 0:01:36]} exd5 {[%emt 0:00:52]} 21. Bd3 {[%emt 0:02:09][%cal Be2d3,Bd3c4,Bc4b5][%mdl 32]} h6 {[%emt 0:04:17]} 22. Rde2 {[%emt 0:03:55]} Rc8 {[%emt 0:02:05]} 23. e4 {[%emt 0:09:36] [#]} (23. Bh7+ $14 {stays ahead.} Kh8 24. Bf5) 23... cxd4 {[%emt 0:05:37] [#]} (23... c4 $1 $17 {[%cal Rc4d3]} 24. exd5 (24. bxc4 dxc4 25. Bxc4 b5 $17) 24... cxd3 25. Rxe7 Rxc2 26. Rxe8+ Kh7) 24. exd5 $1 $14 {[%emt 0:02:17]} Qf8 {[%emt 0:00:24]} 25. Bc4 {[%emt 0:09:22] This bishop pair is nice.} b5 {[%emt 0:10:49]} (25... Rxe2 $11 26. Qxe2 Nf6) 26. Rxe8 {[%emt 0:00:22]} Rxe8 {[%emt 0:00:08]} 27. Rxe8 {[%emt 0:00:13]} Qxe8 {[%emt 0:00:05]} 28. Bxb5 {[%emt 0:04:16] Threatens to win with Qe4.} Bxd5 {[%emt 0:00:41]} 29. Bxd4 {[%emt 0:03:56]} (29. Qf2 $16) 29... Qe1+ $2 {[%emt 0:06:00]} (29... Bxf3 $11 {and Black is okay.} 30. Kf2 Bg4) 30. Kg2 $18 {[%emt 0:00:27]} Ne5 {[%emt 0:00:14]} (30... Nf8 31. b4 (31. Bxa7 Qa5 $16) 31... Ne6 32. Qc8+ Nf8) 31. Qc8+ {[%emt 0:01:12]} Kh7 {[%emt 0:00:11]} 32. Qf5+ {[%emt 0:00:05] Weighted Error Value: White=0.26 (precise) /Black=0.40} 1-0

[Event "FRA-ch Teams Top 16-A 2022"]
[Site "Chartres"]
[Date "2022.06.09"]
[Round "1.22"]
[White "Hirth, Julien"]
[Black "Stephan, Victor"]
[Result "0-1"]
[ECO "B22"]
[WhiteElo "2072"]
[BlackElo "2399"]
[Annotator "TA"]
[PlyCount "113"]
[EventDate "2022.06.09"]
[EventType "team-tourn"]
[EventCountry "FRA"]
[SourceTitle "playchess.com"]
[Source "ChessBase"]
[SourceQuality "1"]
[TimeControl "40/5400+30:1800+30"]

{[%evp 16,113,31,0,26,28,21,25,32,32,42,39,50,32,34,8,8,12,12,20,56,37,33,27,75,75,77,79,99,103,95,0,0,0,0,0,7,0,0,0,0,-12,0,0,0,0,1,0,0,0,0,0,0,0,0,-9,-9,-12,-15,-15,0,-3,0,-44,0,-83,0,-87,-87,-85,-85,-83,-81,-95,-88,-87,-83,-181,-177,-177,-163,-181,-156,-237,-219,-523,-521,-760,-719,-753,-772,-753,-735,-728,-677,-647,-610,-643,-556,-470]} 1. e4 {[%emt 0:00:04] ChessBase II} c5 {[%emt 0:00:10]} 2. c3 {[%emt 0:00:08]} Nf6 {[%emt 0:00:59]} 3. e5 {[%emt 0:00:08]} Nd5 {[%emt 0:00:09]} 4. Nf3 {[%emt 0:00:12]} e6 {[%emt 0:00:51]} 5. d4 {[%emt 0:00:14]} cxd4 {[%emt 0:00:12]} 6. cxd4 {[%emt 0:00:07]} b6 {[%emt 0:00:07]} 7. Bd3 {[%emt 0:00:16]} Bb4+ {[%emt 0:02:49]} 8. Bd2 {[%emt 0:00:21]} Bxd2+ {[%emt 0:00:27]} 9. Nfxd2 {[%emt 0:01:22]} (9. Kxd2 O-O $11) 9... Ba6 {[%emt 0:04:22] B22: Sicilian: 2 c3.} 10. Ne4 {[%emt 0:01:05]} O-O {[%emt 0:00:52]} 11. O-O {[%emt 0:04:28]} Bxd3 {[%emt 0:06:46] White has an edge.} 12. Qxd3 {[%emt 0:01:00]} Nc6 {[%emt 0:00:08]} 13. Nbc3 {[%emt 0:00:48]} f5 {[%emt 0:07:36] [#]} 14. exf6 $146 {[%emt 0:09:42]} ({Predecessor:} 14. Nd6 Nf4 15. Qg3 Ng6 16. Rad1 f4 17. Qg4 Qh4 18. Qxh4 Nxh4 19. Rfe1 Ng6 20. a3 {1-0 (47) Sebag,M (2415)-Romieux,S (2221) France 2006 EXT 2007 [ChessBase II]}) 14... Nxf6 {[%emt 0:00:52]} 15. d5 {[%emt 0:01:03]} Nb4 {[%emt 0:08:38][%csl LRd3,LRd5]} 16. Nxf6+ {[%emt 0:00:55]} Qxf6 {[%emt 0:00:34]} 17. Qe4 $36 {[%emt 0:17:18][%mdl 2048] White has the initiative.} Na6 {[%emt 0:04:40]} 18. dxe6 {[%emt 0:04:06] [#] e7 is the strong threat.} Nc5 {[%emt 0:04:27]} 19. Qc4 {[%emt 0:07:02] aiming for Nd5.} Nxe6 {[%emt 0:04:58]} (19... dxe6 $11 20. Rad1 Rac8) 20. Rad1 $16 {[%emt 0:03:34]} Rac8 {[%emt 0:02:01]} 21. Qd5 {[%emt 0:09:30]} Kh8 {[%emt 0:05:17]} 22. Qxd7 {[%emt 0:03:31]} Nf4 {[%emt 0:02:23][%cal Of4g2]} 23. Nd5 {[%emt 0:09:34]} ({But not} 23. Qxa7 $6 Nxg2 24. Qd7 (24. Kxg2 Qf3+ 25. Kg1 Rf6 $17) 24... Nh4 $15) ({White should play} 23. Qd6 $16) 23... Nxd5 $11 {[%emt 0:05:19]} 24. Qxd5 {[%emt 0:00:11]} Qxb2 {[%emt 0:01:12]} 25. Rd2 {[%emt 0:00:54]} Qb4 {[%emt 0:03:46]} 26. Rd4 {[%emt 0:04:59]} Qe7 {[%emt 0:03:04]} 27. Qd7 {[%emt 0:04:40]} Qf6 {[%emt 0:01:14]} 28. Rd6 {[%emt 0:01:34]} Qe5 {[%emt 0:08:20]} 29. Rd5 {[%emt 0:01:02]} Qb2 {[%emt 0:02:06]} 30. Rd2 {[%emt 0:00:20]} Qb4 {[%emt 0:00:53]} 31. Rd4 {[%emt 0:00:43]} Qc5 {[%emt 0:00:24]} 32. Rd5 {[%emt 0:01:44]} Qa3 {[%emt 0:01:33]} 33. Rd2 $1 {[%emt 0:08:51]} ({Much weaker is} 33. Rg5 Qb2 34. f3 Rc1 $17) 33... h6 {[%emt 0:03:30]} 34. Rfd1 {[%emt 0:01:40]} Rc1 {[%emt 0:01:54]} 35. Rxc1 {[%emt 0:01:09]} Qxc1+ {[%emt 0:00:05][%mdl 4096] Endgame KQR-KQR} 36. Rd1 {[%emt 0:00:01]} Qc2 {[%emt 0:00:19]} 37. Qd2 {[%emt 0:00:16]} Rc8 {[%emt 0:02:41] ( -> ...Qxd2)} 38. h4 {[%emt 0:03:24]} Rc4 {[%emt 0:03:55]} 39. Qd8+ {[%emt 0:02:04]} Kh7 {[%emt 0:10:27][%cal Oc4h4]} 40. h5 {[%emt 0:00:00] [#]} (40. g3 $11) 40... Rc5 {[%emt 0:00:00]} (40... Ra4 $1 $17 41. Re1 Rf4) 41. Rd5 {[%emt 0:16:34]} (41. g4 $11 {remains equal.}) 41... Qc1+ $17 {[%emt 0:00:45] Black continues to play with concentration.} 42. Rd1 {[%emt 0:00:19]} Qc4 {[%emt 0:01:15]} 43. Qe8 {[%emt 0:09:42] Strongly threatening Qg6+.} Qg4 {[%emt 0:01:57] Prevents Qg6+.} 44. f3 {[%emt 0:00:37]} (44. Rd8 {gets mated.} Rc1+) 44... Qxh5 {[%emt 0:00:55]} 45. Qxh5 {[%emt 0:00:55]} Rxh5 {[%emt 0:00:06] KR-KR} 46. Kf2 {[%emt 0:01:06]} (46. a4 $17) 46... Ra5 $19 {[%emt 0:04:26]} 47. Rd2 {[%emt 0:00:07]} Ra3 {[%emt 0:00:06]} 48. Ke2 {[%emt 0:03:36]} Kg6 {[%emt 0:02:49]} 49. Kd1 {[%emt 0:00:40]} (49. Kf2 $17 {keeps fighting.}) 49... Kf5 {[%emt 0:01:06]} 50. Kc1 $2 {[%emt 0:00:52]} (50. Re2 {is a better chance.}) 50... g5 {[%emt 0:03:00] Black is clearly winning.} 51. Re2 {[%emt 0:00:43]} Kf4 {[%emt 0:00:41]} 52. Kb2 {[%emt 0:00:17]} Re3 {[%emt 0:00:32]} 53. Rd2 {[%emt 0:00:35]} Kg3 {[%emt 0:00:23]} 54. Kc2 {[%emt 0:00:43]} Ra3 {[%emt 0:01:06]} 55. Kb2 {[%emt 0:00:20]} Ra5 {[%emt 0:00:06]} 56. Re2 {[%emt 0:00:38]} h5 {[%emt 0:02:38]} 57. Kb3 {[%emt 0:00:06] Weighted Error Value: White=0.29 (precise) /Black=0.10 (very precise)} 0-1